[Event "Panevezys ELITE Open 2021"]
[Site "Panevezys, Lithuania"]
[Date "2021.08.05"]
[Round "8.9"]
[White "Michailov, Andrej"]
[Black "Sedykh, Stakhey"]
[Result "1/2-1/2"]
[WhiteElo "1645"]
[BlackElo "1418"]
[PlyCount "140"]
[EventDate "2021.??.??"]
[TimeControl "90/40+30:0"]
[WhiteClock "0:01:06"]
[BlackClock "0:03:23"]

1. c4 {[%emt 0:00:00]} e5 {[%emt 0:00:12]} 2. Nc3 {[%emt 0:00:03]} Nc6 {[%emt
0:00:17]} 3. Nf3 {[%emt 0:00:18]} g6 {[%emt 0:00:30]} 4. g3 {[%emt 0:12:55]}
Bg7 {[%emt 0:00:08]} 5. Bg2 {[%emt 0:00:02]} f5 {[%emt 0:02:30]} 6. d3 {[%emt
0:01:18]} Nf6 {[%emt 0:00:14]} 7. Bg5 {[%emt 0:05:35]} h6 {[%emt 0:00:18]} 8.
Bxf6 {[%emt 0:00:02]} Qxf6 {[%emt 0:00:33]} 9. Nd5 {[%emt 0:00:04]} Qd8 {[%emt
0:00:10]} 10. Rb1 {[%emt 0:04:58]} O-O {[%emt 0:00:41]} 11. b4 {[%emt 0:07:41]}
Ne7 {[%emt 0:00:57]} 12. Nxe7+ {[%emt 0:00:57]} Qxe7 {[%emt 0:00:06]} 13. O-O {
[%emt 0:00:18]} d6 {[%emt 0:01:29]} 14. e3 {[%emt 0:00:43]} Rb8 {[%emt 0:01:48]
} 15. b5 {[%emt 0:01:34]} g5 {[%emt 0:02:15]} 16. Qa4 {[%emt 0:02:48]} Ra8 {
[%emt 0:02:03]} 17. Qb4 {[%emt 0:04:07]} f4 {[%emt 0:00:58]} 18. Rfc1 {[%emt 0:
01:23]} g4 {[%emt 0:01:01]} 19. Nd2 {[%emt 0:06:50]} fxe3 {[%emt 0:03:51]} 20.
fxe3 {[%emt 0:00:19]} Qg5 {[%emt 0:03:44]} 21. Nf1 {[%emt 0:01:17]} h5 {[%emt
0:09:39]} 22. c5 {[%emt 0:01:09]} Qf6 {[%emt 0:02:01]} 23. cxd6 {[%emt 0:00:32]
} cxd6 {[%emt 0:00:11]} 24. Rc7 {[%emt 0:00:51]} Kh8 {[%emt 0:18:47]} 25. Rbc1
{[%emt 0:17:32]} Rb8 {[%emt 0:08:50]} 26. Qa5 {[%emt 0:05:36]} a6 {[%emt 0:01:
15]} 27. Qb6 {[%emt 0:00:02]} axb5 {[%emt 0:00:43]} 28. Qxb5 {[%emt 0:00:18]}
Be6 {[%emt 0:04:59]} 29. a4 {[%emt 0:01:11]} Bh6 {[%emt 0:01:49]} 30. Kh1 {
[%emt 0:07:03]} Qf2 {[%emt 0:03:07]} 31. Qb4 {[%emt 0:00:36]} Bxe3 {[%emt 0:20:
55]} 32. Nxe3 {[%emt 0:00:58]} Qxe3 {[%emt 0:00:07]} 33. Qxd6 {[%emt 0:00:47]}
Bf5 {[%emt 0:00:15]} 34. Qe7 {[%emt 0:00:58]} Qh6 {[%emt 0:01:50]} 35. Qxe5+ {
[%emt 0:03:57]} Qf6 {[%emt 0:00:05]} 36. d4 {[%emt 0:07:22]} Qxe5 {[%emt 0:01:
01]} 37. dxe5 {[%emt 0:00:01]} Rfe8 {[%emt 0:00:58]} 38. Rxb7 {[%emt 0:03:43]}
Rxb7 {[%emt 0:00:18]} 39. Bxb7 {[%emt 0:00:02]} Rxe5 {[%emt 0:00:17]} 40. Ra1 {
[%emt 0:00:52]} Ra5 {[%emt 0:00:47]} 41. Bc6 {[%emt 0:01:41]} Bc2 {[%emt 0:02:
42]} 42. Kg1 {[%emt 0:02:53]} Kg7 {[%emt 0:02:06]} 43. Kf2 {[%emt 0:00:24]} Kf6
{[%emt 0:01:00]} 44. Ke3 {[%emt 0:00:27]} Ke5 {[%emt 0:00:39]} 45. Bb5 {[%emt
0:02:42]} Bf5 {[%emt 0:09:23]} 46. Ra3 {[%emt 0:07:55]} Bc2 {[%emt 0:05:14]}
47. Kd2 {[%emt 0:00:44]} Be4 {[%emt 0:00:36]} 48. Kc3 {[%emt 0:00:15]} Ra7 {
[%emt 0:01:36]} 49. Kb4 {[%emt 0:04:32]} h4 {[%emt 0:02:49]} 50. a5 {[%emt 0:
04:00]} hxg3 {[%emt 0:01:36]} 51. hxg3 {[%emt 0:00:13]} Kd6 {[%emt 0:00:15]}
52. a6 {[%emt 0:01:17]} Ra8 {[%emt 0:03:29]} 53. Ka5 {[%emt 0:03:12]} Rc8 {
[%emt 0:02:41]} 54. Ra4 {[%emt 0:01:15]} Bf3 {[%emt 0:00:39]} 55. Rd4+ {[%emt
0:00:48]} Ke5 {[%emt 0:02:41]} 56. Rd7 {[%emt 0:01:20]} Ke4 {[%emt 0:01:21]}
57. a7 {[%emt 0:01:18]} Ke3 {[%emt 0:00:16]} 58. Rg7 {[%emt 0:02:58]} Kf2 {
[%emt 0:00:51]} 59. Bd7 {[%emt 0:00:23]} Ra8 {[%emt 0:03:44]} 60. Bxg4 {[%emt
0:03:54]} Bxg4 {[%emt 0:01:26]} 61. Kb6 {[%emt 0:00:20]} Kxg3 {[%emt 0:01:10]}
62. Kb7 {[%emt 0:00:44]} Re8 {[%emt 0:00:40]} 63. a8=Q {[%emt 0:01:18]} Rxa8 {
[%emt 0:00:04]} 64. Kxa8 {[%emt 0:00:24]} Kf4 {[%emt 0:00:04]} 65. Kb7 {[%emt
0:00:14]} Bf3+ {[%emt 0:00:17]} 66. Kb6 {[%emt 0:00:08]} Ke5 {[%emt 0:00:27]}
67. Kc5 {[%emt 0:00:05]} Ke6 {[%emt 0:00:26]} 68. Rg3 {[%emt 0:00:18]} Bh1 {
[%emt 0:01:12]} 69. Re3+ {[%emt 0:00:09]} Kf5 {[%emt 0:00:21]} 70. Re5+ {[%emt
0:01:28]} Kxe5 {[%emt 0:00:30]} 1/2-1/2

[Event "Panevezys ELITE Open 2021"]
[Site "Panevezys, Lithuania"]
[Date "2021.08.05"]
[Round "8.10"]
[White "Bazevicius, Albertas"]
[Black "Steponavicius, Stasys"]
[Result "0-1"]
[WhiteElo "1867"]
[BlackElo "2209"]
[PlyCount "70"]
[EventDate "2021.??.??"]
[TimeControl "90/40+30:0"]
[WhiteClock "1:01:28"]
[BlackClock "1:00:46"]

1. Nf3 {[%emt 0:00:03]} Nf6 {[%emt 0:00:38]} 2. b3 {[%emt 0:00:17]} b6 {[%emt
0:00:37]} 3. g3 {[%emt 0:00:11]} Bb7 {[%emt 0:00:07]} 4. Bg2 {[%emt 0:00:15]}
g6 {[%emt 0:00:42]} 5. Bb2 {[%emt 0:00:13]} Bg7 {[%emt 0:00:06]} 6. c4 {[%emt
0:00:14]} O-O {[%emt 0:00:23]} 7. d4 {[%emt 0:00:06]} e6 {[%emt 0:01:03]} 8.
Nbd2 {[%emt 0:00:28]} c5 {[%emt 0:01:45]} 9. O-O {[%emt 0:01:03]} cxd4 {[%emt
0:00:17]} 10. Bxd4 {[%emt 0:00:18]} Nc6 {[%emt 0:01:18]} 11. Bb2 {[%emt 0:00:
25]} d5 {[%emt 0:01:13]} 12. cxd5 {[%emt 0:01:25]} Nxd5 {[%emt 0:00:58]} 13.
Bxg7 {[%emt 0:00:20]} Kxg7 {[%emt 0:00:08]} 14. Rc1 {[%emt 0:04:22]} Ncb4 {
[%emt 0:03:24]} 15. e4 {[%emt 0:03:02]} Nf6 {[%emt 0:01:03]} 16. Rc4 {[%emt 0:
03:33]} Qe7 {[%emt 0:03:12]} 17. a3 {[%emt 0:04:21]} Na6 {[%emt 0:02:52]} 18.
b4 {[%emt 0:00:22]} e5 {[%emt 0:02:10]} 19. Qe2 {[%emt 0:00:28]} Nc7 {[%emt 0:
06:43]} 20. Rfc1 {[%emt 0:00:09]} Ba6 {[%emt 0:03:27]} 21. Rxc7 {[%emt 0:01:26]
} Qxc7 {[%emt 0:00:15]} 22. Rxc7 {[%emt 0:00:01]} Bxe2 {[%emt 0:00:10]} 23.
Nxe5 {[%emt 0:01:56]} Ng4 {[%emt 0:01:59]} 24. Nxg4 {[%emt 0:08:52]} Bxg4 {
[%emt 0:00:12]} 25. h3 {[%emt 0:00:25]} Be6 {[%emt 0:01:01]} 26. e5 {[%emt 0:
02:01]} Rad8 {[%emt 0:00:16]} 27. Ne4 {[%emt 0:00:03]} Rd7 {[%emt 0:00:29]} 28.
Rc1 {[%emt 0:02:20]} Rd3 {[%emt 0:00:58]} 29. Nd6 {[%emt 0:01:59]} Rxa3 {[%emt
0:04:05]} 30. b5 {[%emt 0:00:02]} a6 {[%emt 0:01:02]} 31. bxa6 {[%emt 0:00:16]}
Rxa6 {[%emt 0:00:11]} 32. Rb1 {[%emt 0:03:01]} Rb8 {[%emt 0:01:40]} 33. Bb7 {
[%emt 0:00:31]} Ra7 {[%emt 0:00:27]} 34. Rxb6 {[%emt 0:00:06]} Bd5 {[%emt 0:01:
27]} 35. Ra6 {[%emt 0:01:44]} Rbxb7 {[%emt 0:01:12]} 0-1